bitfinex/quotes_SOLUSD_20241113
["timestamp","ask_amount","ask_price","bid_price","bid_amount"]
[1731536286746,0.81644998,212.76,212.59,4.7038]
[1731536287046,29.00644998,212.76,212.61,20.0]
[1731536287943,24.7003,212.75,212.61,16.462]
[1731536288143,23.776884,212.74,212.61,16.462]
[1731536288448,122.8903,212.75,212.57,6.0564]
[1731536288449,72.092374,212.71,212.57,6.0564]
[1731536288834,72.092374,212.71,212.58,16.4641]
[1731536289031,71.092374,212.71,212.58,16.4641]
[1731536289859,4.7014,212.7,212.58,16.4641]
[1731536291259,20.12549,212.66,212.53,11.7629]
[1731536291432,23.776884,212.65,212.53,11.7629]
[1731536292267,28.479584,212.65,212.53,11.7629]
[1731536292467,0.12549,212.64,212.53,11.7629]
[1731536292842,28.479584,212.65,212.53,11.7629]
[1731536293558,70.0,212.7,212.53,11.7629]
[1731536293758,23.776884,212.68,212.53,11.7629]
[1731536293965,20.0,212.67,212.53,11.7629]
[1731536294159,4.7016,212.69,212.53,11.7629]
[1731536294360,23.776884,212.68,212.53,11.7629]
[1731536294554,0.12549,212.67,212.53,11.7629]
[1731536294752,23.776884,212.68,212.53,11.7629]
[1731536295671,28.603974,212.69,212.53,11.7629]
[1731536298042,28.19,212.68,212.53,11.7629]
[1731536298247,4.7018,212.69,212.54,20.0]
[1731536298466,4.7018,212.69,212.54,27.02643872]
[1731536298774,28.19,212.68,212.54,20.0]
[1731536299646,4.7021,212.67,212.55,16.4666]
[1731536301946,51.966884,212.66,212.55,16.4666]
[1731536302261,70.0,212.69,212.55,16.4666]
[1731536302262,32.8918,212.69,212.55,16.4666]
[1731536302657,32.8918,212.69,212.56,16.6276]
[1731536303551,32.8918,212.69,212.57,16.4651]
[1731536304348,40.21649169,212.69,212.57,16.4651]
[1731536304544,51.966884,212.68,212.57,16.4651]
[1731536304744,51.966884,212.66,212.57,16.4651]
[1731536305345,51.966884,212.66,212.57,11.7608]
[1731536305661,72.092374,212.63,212.51,16.6276]
[1731536306648,51.966884,212.59,212.51,16.6276]
[1731536306968,4.7036,212.6,212.51,21.333]
[1731536307853,52.092374,212.59,212.49,22.5275]
[1731536308361,52.092374,212.59,212.49,17.8216]
[1731536308564,0.12549,212.54,212.44,16.4745]
[1731536308776,0.12549,212.54,212.3,0.1]
[1731536308777,28.31549,212.52,212.4,11.7701]
[1731536309077,93.776884,212.53,212.4,11.7701]
[1731536309078,51.966884,212.49,212.4,11.7701]
[1731536309770,0.12549,212.48,212.37,11.0575]
[1731536309953,28.31549,212.42,212.32,6.3488]
[1731536310277,70.12549,212.44,212.32,6.3488]
[1731536310278,51.966884,212.41,212.32,6.3488]
[1731536310568,0.12549,212.4,212.32,6.3488]
[1731536310772,52.092374,212.38,212.28,4.7105]
[1731536312047,28.19,212.42,212.26,40.0452]
[1731536312249,51.966884,212.41,212.26,40.0452]
[1731536312450,51.966884,212.44,212.27,20.0]
[1731536313063,4.7061,212.49,212.29,20.0]
[1731536313271,4.7061,212.49,212.3,22.278]
[1731536313457,4.7061,212.49,212.31,20.0]
[1731536313652,28.19,212.48,212.31,20.0]
[1731536313852,4.7055,212.52,212.32,23.776884]
[1731536314172,4.7055,212.52,212.35,60.0282]
[1731536314647,0.12549,212.51,212.35,60.0282]
[1731536315265,193.3955,212.52,212.35,60.0282]
[1731536315566,0.12549,212.51,212.35,60.0282]
[1731536315870,4.7058,212.5,212.35,60.0282]
[1731536319454,52.092374,212.51,212.35,60.0282]
[1731536319673,7.33081813,212.53,212.37,20.0]
[1731536319946,16.4242,212.56,212.39,20.0]
[1731536319947,18.824125,212.56,212.39,20.0]
[1731536320153,18.824125,212.56,212.43,20.0]
[1731536320377,4.7039,212.59,212.43,20.0]
[1731536320747,35.52596853,212.6,212.43,20.0]
[1731536321576,18.816401,212.64,212.48,20.0]
[1731536322282,50.07734471,212.64,212.48,20.0]
[1731536322456,31.26094371,212.64,212.48,20.0]
[1731536322661,23.776884,212.62,212.49,16.4713]
[1731536322848,23.776884,212.62,212.5,20.0]
[1731536323051,23.776884,212.62,212.49,16.4713]
[1731536323052,28.19,212.59,212.49,16.4713]
[1731536323453,28.19,212.57,212.49,16.4713]
[1731536323667,28.19,212.55,212.49,11.7652]
[1731536324062,28.19,212.55,212.49,16.4713]
[1731536324258,28.19,212.53,212.47,11.2647]
[1731536324948,32.8952,212.53,212.47,6.5583]
[1731536325152,28.19,212.49,212.43,16.4752]
[1731536325357,28.19,212.49,212.43,11.768]
[1731536325556,23.776884,212.48,212.42,6.5583]
[1731536325863,28.19,212.47,212.42,6.5583]
[1731536327962,32.8965,212.47,212.42,6.5583]
[1731536328158,28.19,212.47,212.42,6.5583]
[1731536329081,32.8965,212.47,212.42,6.5583]
[1731536329282,32.8956,212.51,212.42,23.035]
[1731536330358,28.19,212.51,212.42,23.035]
[1731536331586,52.092374,212.55,212.42,46.5732]
[1731536331882,52.092374,212.53,212.42,23.035]
[1731536332064,16.0134,212.58,212.42,23.035]
[1731536332065,4.7043,212.58,212.43,20.0]
[1731536332381,4.7038,212.6,212.43,20.0]
[1731536332566,28.19,212.59,212.43,20.0]
[1731536333558,28.19,212.6,212.43,20.0]
[1731536333764,32.894,212.59,212.44,16.4752]
[1731536335183,32.894,212.59,212.46,16.4736]
[1731536337385,32.894,212.59,212.46,40.0074]
[1731536338180,28.19,212.53,212.45,15.3797]
[1731536338393,28.19,212.53,212.45,20.0866]
[1731536338589,28.19,212.53,212.45,43.6215]
[1731536338799,28.19,212.53,212.45,55.3889]
[1731536339164,28.19,212.57,212.45,55.3889]
[1731536339363,0.12549,212.56,212.45,55.3889]
[1731536339566,0.12549,212.5,212.42,6.5583]
[1731536339772,28.19,212.49,212.42,6.5583]
[1731536340165,28.19,212.47,212.42,6.5583]
[1731536340670,28.19,212.51,212.42,23.035]
[1731536341378,3.11550739,212.57,212.42,23.035]
[1731536341379,28.19,212.54,212.42,23.035]
[1731536341860,0.12549,212.53,212.42,23.035]
[1731536342065,28.19,212.5,212.42,23.035]
[1731536343185,28.19,212.48,212.42,6.5583]
[1731536343487,28.19,212.48,212.4,15.3797]
[1731536344074,28.19,212.47,212.4,15.3797]
[1731536344296,28.19,212.47,212.4,20.0876]
[1731536344788,28.19,212.45,212.32,6.2818]
[1731536345683,0.12549,212.46,212.32,6.2818]
[1731536345885,28.19,212.43,212.32,6.2818]
[1731536346188,28.19,212.41,212.33,16.4837]
[1731536347299,32.897,212.45,212.33,16.4837]
[1731536347595,28.19,212.43,212.33,16.4837]
[1731536348495,28.19,212.41,212.33,16.4837]
[1731536349103,28.19,212.41,212.33,40.0319]
[1731536349267,28.19,212.49,212.34,20.12549]
[1731536349474,28.19,212.48,212.35,46.247684]
[1731536349686,28.19,212.48,212.36,20.0]
[1731536350096,0.817546,212.52,212.36,20.0]
[1731536350391,28.19,212.51,212.38,20.0]
[1731536350987,28.19,212.49,212.37,16.4806]
[1731536351982,32.8961,212.49,212.37,35.3157]
[1731536352786,23.776884,212.44,212.35,22.4708]
[1731536353094,28.19,212.43,212.35,10.9909]
[1731536353294,28.19,212.41,212.33,11.7739]
[1731536353474,28.19,212.41,212.33,16.4834]
[1731536353879,28.19,212.41,212.28,16.189]
[1731536354202,70.0,212.43,212.29,16.4868]
[1731536354203,28.19,212.39,212.29,16.4868]
[1731536355807,51.966884,212.4,212.29,16.4868]
[1731536356092,28.19,212.4,212.29,16.4868]
[1731536356502,28.19,212.4,212.29,40.0394]
[1731536356796,28.19,212.43,212.29,40.0394]
[1731536357984,28.19,212.44,212.29,40.0394]
[1731536358191,28.19,212.42,212.29,40.0394]
[1731536358784,32.8976,212.42,212.29,40.0394]
[1731536358988,28.19,212.4,212.29,40.0394]
[1731536360101,28.19,212.39,212.29,40.0394]
[1731536361302,28.19,212.41,212.29,40.0394]
[1731536361684,56.693184,212.48,212.32,20.0]
[1731536362081,51.986884,212.46,212.32,20.0]
[1731536362490,0.81766665,212.45,212.33,16.3288]
[1731536362687,0.81766665,212.45,212.36,20.0]
[1731536362894,28.21,212.54,212.36,20.0]
[1731536363097,29.02743861,212.54,212.38,20.0]
[1731536363497,28.21,212.54,212.41,20.0]
[1731536363681,160.5,212.6,212.41,36.4774]
[1731536363886,4.704,212.59,212.41,36.4774]
[1731536365399,0.81732251,212.6,212.42,16.3288]
[1731536365704,4.7028,212.64,212.45,20.0]
[1731536366902,3.11771139,212.64,212.48,20.0]
[1731536367205,0.81706964,212.66,212.48,28.24468658]
[1731536367593,5.51946964,212.66,212.48,28.24468658]
[1731536368182,5.51946964,212.66,212.48,20.0]
[1731536368401,5.51946964,212.66,212.48,28.24468658]
[1731536368594,5.51946964,212.66,212.47,22.9477]
[1731536368595,5.51946964,212.66,212.51,39.998]
[1731536370505,23.902374,212.65,212.51,39.998]
[1731536370712,23.902374,212.61,212.48,4.7061]
[1731536371203,23.902374,212.58,212.48,4.7061]
[1731536371781,23.776884,212.56,212.48,4.7061]
[1731536371986,4.7043,212.57,212.48,16.4719]
[1731536376212,3.02693616,212.58,212.48,16.4719]
[1731536376415,4.7041,212.58,212.48,16.4719]
[1731536377295,4.7038,212.6,212.48,16.4719]
[1731536377612,7.33770907,212.59,212.48,16.4719]
[1731536378912,31.58216231,212.6,212.48,16.4719]
[1731536379210,4.7041,212.58,212.48,16.4719]
[1731536379410,4.7027,212.64,212.48,40.0035]
[1731536379610,7.77086888,212.64,212.48,40.0035]
[1731536379983,7.77086888,212.64,212.49,20.0]
[1731536381116,23.776884,212.63,212.5,16.4705]
[1731536382016,7.33609442,212.65,212.51,26.0313]
[1731536382506,7.33609442,212.65,212.52,8.24468658]
[1731536382710,0.81706964,212.66,212.53,15.5767]
[1731536383295,0.81706964,212.66,212.54,39.9922]
[1731536383491,70.0,212.75,212.55,26.15679]
[1731536383711,70.0,212.75,212.55,34.40147658]
[1731536384013,8.1497506,212.74,212.55,34.40147658]
[1731536384716,7.33299896,212.74,212.55,34.40147658]
[1731536384893,7.33299896,212.74,212.59,20.0]
[1731536385093,15.9055,212.8,212.62,20.0]
[1731536385094,0.8,212.8,212.62,20.0]
[1731536385401,0.8,212.8,212.65,6.0313]
[1731536385596,5.4993,212.8,212.65,6.0313]
[1731536385996,5.4993,212.8,212.66,20.0]
[1731536386591,8.50589661,212.8,212.67,16.4574]
[1731536388420,8.50589661,212.8,212.67,39.968]
[1731536390215,23.776884,212.79,212.67,16.4574]
[1731536390717,70.12549,212.78,212.67,16.4574]
[1731536390913,23.776884,212.77,212.67,16.4574]
[1731536391206,0.12549,212.76,212.67,16.4574]
[1731536391595,0.12549,212.76,212.67,11.7553]
[1731536391798,23.902374,212.74,212.65,6.0313]
[1731536392203,4.7005,212.75,212.65,22.4902]
[1731536392591,23.776884,212.74,212.65,22.4902]
[1731536393209,0.12549,212.73,212.65,6.0313]
[1731536393613,23.902374,212.71,212.65,6.0313]
[1731536394308,4.7014,212.7,212.65,6.0313]
[1731536394498,4.7014,212.7,212.63,15.5767]
[1731536395408,93.902374,212.69,212.6,6.6004]
[1731536395618,93.902374,212.69,212.6,11.304]
[1731536395921,23.776884,212.67,212.6,6.6004]
[1731536396498,28.479184,212.67,212.6,6.6004]
[1731536398013,23.776884,212.65,212.6,6.6004]
[1731536398521,4.7025,212.66,212.6,6.6004]
[1731536399015,3.14933813,212.67,212.6,6.6004]
[1731536399216,4.7022,212.67,212.6,11.304]
[1731536399429,23.776884,212.66,212.6,6.6004]
[1731536400104,4.7027,212.64,212.6,6.6004]
[1731536400314,4.7024,212.66,212.6,6.6004]
[1731536402897,4.7024,212.66,212.57,11.7607]
[1731536402898,23.902374,212.65,212.57,11.7607]
[1731536403097,23.902374,212.65,212.57,16.465]
[1731536403320,23.776884,212.65,212.57,16.465]
[1731536404111,4.7027,212.64,212.57,11.7607]
[1731536404816,10.4713343,212.68,212.57,11.7607]
[1731536405010,23.776884,212.66,212.57,11.7607]
[1731536406012,4.7025,212.65,212.57,11.7607]
[1731536408741,0.81699999,212.67,212.57,11.7607]
[1731536409032,0.81684739,212.7,212.57,11.7607]
[1731536409222,7.338351,212.67,212.57,11.7607]
[1731536412233,12.040451,212.67,212.57,11.7607]
[1731536417044,23.776884,212.66,212.57,11.7607]
[1731536418425,4.7025,212.65,212.57,11.7607]
[1731536418631,23.902374,212.64,212.55,11.3051]
[1731536418941,4.7025,212.65,212.55,23.067]
[1731536420027,98.604674,212.66,212.55,23.067]
[1731536420518,101.65624866,212.66,212.55,23.067]
[1731536422424,113.41204866,212.66,212.55,6.6004]
[1731536422743,23.776884,212.62,212.55,6.6004]
[1731536423241,0.8,212.55,212.5,6.3144]
[1731536424624,4.7049,212.54,212.5,6.3144]
[1731536425445,4.7049,212.54,212.48,15.6177]
[1731536425751,23.776884,212.53,212.45,11.0211]
[1731536426128,23.776884,212.53,212.45,6.3144]
[1731536426639,4.7054,212.52,212.45,6.3144]
[1731536427951,160.5,212.56,212.45,6.3144]
[1731536427952,7.32942159,212.67,212.63,0.1]
[1731536428143,160.5,212.85,212.63,0.1]
[1731536428144,70.0,212.85,212.64,43.776884]
[1731536428464,70.0,212.82,212.64,42.24201438]
[1731536428632,167.828149,212.84,212.64,23.776884]
[1731536428930,3.91168637,212.8,212.63,6.3144]
[1731536429127,0.1,212.78,212.63,6.3144]
[1731536429340,0.12549,212.75,212.63,6.3144]
[1731536429552,70.0,212.76,212.63,6.3144]
[1731536430047,0.12549,212.75,212.63,6.3144]
[1731536430248,70.12549,212.73,212.63,6.3144]
[1731536430546,70.12549,212.73,212.59,11.7592]
[1731536430547,0.22549,212.71,212.59,11.7592]
[1731536431648,0.12549,212.69,212.59,11.7592]
[1731536431830,0.12549,212.69,212.57,22.7794]
[1731536432847,20.12549,212.69,212.57,22.7794]
[1731536433049,4.7018,212.68,212.57,22.7794]
[1731536433548,0.12549,212.67,212.57,22.7794]
[1731536434028,4.82769,212.67,212.57,22.7794]
[1731536434348,24.82769,212.67,212.57,22.7794]
[1731536435057,24.7022,212.67,212.57,22.7794]
[1731536435263,4.7022,212.67,212.57,22.7794]
[1731536444265,27.33354064,212.68,212.57,22.7794]
[1731536445993,32.03544064,212.68,212.57,22.7794]
[1731536448356,27.33354064,212.68,212.57,22.7794]
[1731536448569,32.03554064,212.68,212.57,22.7794]
[1731536449470,0.81688777,212.67,212.57,22.7794]
[1731536450650,5.51898777,212.67,212.57,22.7794]
[1731536450848,0.81688777,212.67,212.57,22.7794]
[1731536451356,5.51898777,212.67,212.57,22.7794]
[1731536453376,0.81688777,212.67,212.57,46.301]
[1731536453975,0.81688777,212.67,212.55,43.902374]
[1731536455062,0.81688777,212.67,212.57,35.2824]
[1731536456854,0.81688777,212.67,212.59,16.4635]
[1731536461279,0.81688777,212.67,212.6,23.776884]
[1731536461468,4.7005,212.74,212.6,23.776884]
[1731536462878,24.7005,212.74,212.6,23.776884]
[1731536463175,24.7005,212.74,212.61,39.9792]
[1731536463850,24.7005,212.74,212.62,23.776884]
[1731536464054,7.35593557,212.75,212.63,35.4895]
[1731536464276,7.35593557,212.75,212.64,23.776884]
[1731536465577,24.6994,212.79,212.65,16.4589]
[1731536465763,32.05397485,212.79,212.65,16.4589]
[1731536466977,34.91288301,212.79,212.65,16.4589]
[1731536468181,34.91288301,212.79,212.65,11.7564]
[1731536468888,0.12549,212.78,212.65,11.7564]
[1731536469181,20.0,212.77,212.65,11.7564]
[1731536470362,4.7001,212.76,212.65,11.7564]
[1731536470774,20.0,212.77,212.65,11.7564]
[1731536470975,24.7,212.77,212.65,11.7564]
[1731536474591,24.7,212.77,212.63,20.1924]
[1731536475385,36.4497,212.77,212.63,31.9499]
[1731536476163,24.7003,212.75,212.63,31.9499]
[1731536482468,36.4511,212.75,212.63,31.9499]
[1731536484592,0.81500593,212.74,212.63,31.9499]
[1731536484890,4.7007,212.73,212.63,31.9499]
[1731536485395,36.4526,212.73,212.63,15.4895]
[1731536486381,7.35031411,212.72,212.63,15.4895]
[1731536486581,4.7012,212.71,212.63,15.4895]
[1731536487693,4.7012,212.71,212.63,20.1924]
[1731536490393,4.7012,212.71,212.63,31.9499]
[1731536495575,4.7008,212.73,212.63,31.9499]
[1731536514508,12.04645186,212.73,212.63,31.9499]
[1731536517702,23.776884,212.71,212.59,16.4635]
[1731536518003,20.0,212.7,212.59,16.4635]
[1731536518389,20.81466491,212.7,212.59,16.4635]
[1731536518786,98.603974,212.69,212.59,16.4635]
[1731536518991,20.0,212.68,212.59,16.4635]
[1731536520204,4.7021,212.67,212.59,16.4635]
[1731536522311,7.62951387,212.67,212.59,16.4635]
[1731536522486,24.7019,212.68,212.59,16.4635]
[1731536525592,8.16913261,212.7,212.59,16.4635]
[1731536525795,4.7012,212.72,212.59,39.9829]
[1731536530091,24.7008,212.73,212.59,39.9829]
[1731536530288,12.05745038,212.74,212.6,20.0]
[1731536531911,12.05745038,212.74,212.61,39.9792]
[1731536533009,12.05745038,212.74,212.61,35.2758]
[1731536533792,20.0,212.73,212.61,35.2758]
[1731536534204,4.701,212.72,212.61,35.2758]
[1731536539418,7.35685038,212.74,212.64,20.0]
[1731536541721,0.81591525,212.78,212.65,39.9717]
[1731536543425,5.51561525,212.78,212.65,39.9717]
[1731536551920,5.51561525,212.78,212.67,16.4574]
[1731536553333,0.81591525,212.78,212.67,39.968]
[1731536553520,4.6994,212.79,212.68,6.5133]
[1731536555411,4.6994,212.79,212.69,16.4557]
[1731536558919,3.61876969,212.8,212.69,16.4557]
[1731536559237,8.31796969,212.8,212.69,16.4557]
[1731536561314,5.4992,212.8,212.69,16.4557]
[1731536564717,5.4992,212.8,212.69,39.964]
[1731536574641,0.8,212.8,212.69,39.964]
[1731536579046,0.81639961,212.79,212.69,39.964]
[1731536588464,5.4993,212.8,212.69,39.964]
[1731536592344,0.8,212.8,212.69,39.964]
[1731536592672,5.4992,212.8,212.69,39.964]
[1731536594449,0.8,212.8,212.7,60.271974]
[1731536594661,0.8,212.8,212.72,43.776884]
[1731536596675,0.8,212.8,212.74,23.776884]
[1731536598248,0.8,212.8,212.75,16.4511]
[1731536600255,0.8,212.8,212.75,39.9528]
[1731536606555,0.8,212.8,212.76,39.649384]
[1731536606752,0.8,212.8,212.78,23.776884]
[1731536608057,0.8,212.8,212.79,4.6994]
[1731536609073,0.8,212.8,212.79,48.476284]
[1731536619684,0.8,212.8,212.79,4.6994]
[1731536620066,0.8,212.8,212.79,4.82489]
[1731536620975,0.8,212.8,212.79,48.601774]
[1731536622382,0.8,212.8,212.79,48.701774]
[1731536623282,0.454363,212.88,212.82,0.1]
[1731536623601,0.454363,212.88,212.85,20.0]
[1731536623883,0.454363,212.88,212.87,43.776884]
[1731536624277,3.686763,212.98,212.87,43.776884]
[1731536624588,4.695,212.99,212.88,16.4411]
[1731536626777,20.585,213.0,212.89,23.776884]
[1731536628290,15.8902,213.0,212.91,43.776884]
[1731536628485,2.81227263,213.04,212.93,59.709384]
[1731536628689,5.50875902,213.08,212.93,59.709384]
[1731536629068,2.812273,213.07,212.93,59.709384]
[1731536629583,0.81565902,213.08,212.95,43.776884]
[1731536629781,8.34784233,213.08,212.95,43.776884]
[1731536629989,5.50875902,213.08,212.95,43.776884]
[1731536630174,0.81565902,213.08,212.95,43.776884]
[1731536630377,0.454363,213.09,212.95,43.776884]
[1731536631194,0.454363,213.09,212.99,23.776884]
[1731536631385,0.454363,213.09,213.01,23.776884]
[1731536631586,0.454363,213.09,213.03,23.776884]
[1731536632693,0.454363,213.09,213.04,16.4287]
[1731536633290,0.454363,213.09,213.04,11.7348]
[1731536634582,0.454363,213.09,213.0,11.7369]
[1731536635901,4.693,213.08,213.0,11.7369]
[1731536639707,8.06178524,213.09,213.0,11.7369]
[1731536641192,20.0,213.08,212.96,4.6957]
[1731536641885,20.0,213.08,212.97,0.12549]
[1731536642282,4.6932,213.07,212.97,4.82079]
[1731536643401,16.4256,213.08,212.97,0.12549]
[1731536643809,16.4256,213.08,212.93,16.4372]
[1731536644185,16.4256,213.08,212.94,0.12549]
[1731536644689,20.0,213.07,212.93,11.7409]
[1731536645086,20.0,213.07,212.93,16.4372]
[1731536645292,20.0,213.07,212.94,0.12549]
[1731536645593,5.147163,213.09,212.96,22.4415]
[1731536646110,5.147163,213.09,212.98,23.776884]
[1731536646306,0.454363,213.09,212.98,23.776884]
[1731536646808,0.454363,213.09,212.99,20.0]
[1731536647005,0.454363,213.09,213.0,23.776884]
[1731536647684,0.454363,213.09,213.01,16.4311]
[1731536648492,0.454363,213.09,213.03,16.4295]
[1731536648704,0.454363,213.09,213.05,23.776884]
[1731536649099,0.454363,213.09,213.04,23.776884]
[1731536649606,0.454363,213.09,213.05,36.428]
[1731536649806,0.454363,213.09,213.06,23.776884]
[1731536651009,0.454363,213.09,213.08,23.776884]
[1731536651811,0.454363,213.09,213.07,16.4264]
[1731536651993,0.454363,213.09,213.08,23.776884]
[1731536652894,0.454363,213.09,213.03,36.4294]
[1731536653384,0.454363,213.09,213.04,0.12549]
[1731536654600,0.454363,213.09,213.04,23.902374]
[1731536654800,0.454363,213.09,213.05,16.428]
[1731536655001,0.454363,213.09,213.06,23.776884]
[1731536656915,0.454363,213.09,213.07,16.4264]
[1731536658589,0.454363,213.09,213.08,23.776884]
[1731536658993,0.454363,213.09,213.08,28.469884]
[1731536663015,0.454363,213.09,213.08,4.693]
[1731536664020,0.454363,213.09,213.07,11.7332]
[1731536679727,0.454363,213.09,213.07,11.7332]
[1731536684029,0.454363,213.09,213.08,23.776884]
[1731536684411,0.454363,213.09,213.08,43.776884]
[1731536684609,0.454363,213.09,213.08,23.776884]
[1731536685122,0.454363,213.09,213.08,43.776884]
[1731536685305,0.454363,213.09,213.08,42.77751163]
[1731536686232,0.454363,213.09,213.08,47.47051163]
[1731536700338,6.3e-05,213.09,213.08,47.57051163]
[1731536700644,6.3e-05,213.09,213.08,47.47051163]
[1731536701027,6.3e-05,213.09,213.08,47.57051163]
[1731536701229,6.3e-05,213.09,213.08,47.67051163]
[1731536702525,6.3e-05,213.09,213.08,47.57051163]
[1731536702726,6.3e-05,213.09,213.08,47.67051163]
[1731536703424,6.3e-05,213.09,213.08,47.47051163]
[1731536704641,6.3e-05,213.09,213.08,24.693]
[1731536705250,6.3e-05,213.09,213.08,4.693]
[1731536705555,6.3e-05,213.09,213.08,4.81849]
[1731536705933,6.3e-05,213.09,213.08,28.595374]
[1731536706341,6.3e-05,213.09,213.08,48.595374]
[1731536713248,6.3e-05,213.09,213.08,24.693]
[1731536713552,15.7145,213.22,213.1,0.12549]
[1731536714448,15.7145,213.22,213.1,23.902374]
[1731536714647,15.7145,213.22,213.12,23.776884]
[1731536714846,15.7145,213.22,213.14,23.776884]
[1731536715450,15.7145,213.22,213.15,16.4203]
[1731536717942,15.7145,213.22,213.16,23.776884]
[1731536719168,15.7145,213.22,213.17,20.0]
[1731536719665,15.7145,213.22,213.18,16.4179]
[1731536721144,15.7145,213.22,213.14,11.729]
[1731536721145,20.4045,213.22,213.14,11.729]
[1731536722363,20.4045,213.22,213.15,0.12549]
[1731536722564,20.4045,213.22,213.09,20.0]
[1731536723359,20.4045,213.22,213.1,16.54959]
[1731536723748,20.4045,213.22,213.11,23.776884]
[1731536724861,20.4045,213.22,213.12,16.4225]
[1731536727971,20.4045,213.22,213.12,11.7304]
[1731536728159,20.0,213.21,213.12,11.7304]
[1731536728973,22.2666,213.21,213.13,0.12549]
[1731536729263,22.2666,213.21,213.12,11.7304]
[1731536730250,4.6904,213.2,213.06,0.12549]
[1731536730460,22.2666,213.21,213.06,0.12549]
[1731536730461,22.2666,213.21,213.06,43.902374]
[1731536731053,22.2666,213.21,213.07,0.1]
[1731536731675,22.2666,213.21,213.07,1.13816659]
[1731536731864,22.2666,213.21,213.08,23.776884]
[1731536732172,22.2666,213.21,213.1,23.776884]
[1731536732556,22.2666,213.21,213.13,20.0]
[1731536732756,22.2666,213.21,213.14,23.776884]
[1731536732757,15.9914,213.21,213.14,23.776884]
[1731536733069,15.9914,213.21,213.12,43.776884]
[1731536734660,15.9914,213.21,213.14,20.0]
[1731536735952,15.9914,213.21,213.15,23.776884]
[1731536736571,7.29792779,213.24,213.17,23.776884]
[1731536736772,6.2752,213.25,213.17,23.776884]
[1731536738692,6.2752,213.25,213.18,16.4179]
[1731536739468,6.2752,213.25,213.18,39.8722]
[1731536744360,22.77829081,213.27,213.19,23.776884]
[1731536744674,22.77829081,213.27,213.2,16.4164]
[1731536745773,22.77829081,213.27,213.2,39.8685]
[1731536747054,22.77829081,213.27,213.21,23.776884]
[1731536747564,22.77829081,213.27,213.22,16.4148]
[1731536752774,22.77829081,213.27,213.23,23.776884]
[1731536754880,22.77829081,213.27,213.24,16.4133]
[1731536767887,22.77829081,213.27,213.25,43.776884]
[1731536768088,22.65289081,213.27,213.25,43.776884]
[1731536769480,22.65289081,213.27,213.26,28.465984]
[1731536769680,22.65289081,213.27,213.26,48.465984]
[1731536770081,22.65289081,213.27,213.26,4.6891]
[1731536771573,22.65289081,213.27,213.26,4.81459]
[1731536772095,22.52749081,213.27,213.26,48.591474]
[1731536772896,19.36959081,213.27,213.26,48.591474]
[1731536773074,12.55149081,213.27,213.26,48.591474]
[1731536773391,6.20339081,213.27,213.26,48.591474]
[1731536773894,1.24549081,213.27,213.26,48.591474]
[1731536774098,9.081e-05,213.27,213.26,48.591474]
[1731536775778,14.60625381,213.39,213.27,43.776884]
[1731536777596,14.60625381,213.39,213.29,23.776884]
[1731536779095,14.60625381,213.39,213.3,11.7205]
[1731536779487,14.60625381,213.39,213.31,23.776884]
[1731536780490,14.60625381,213.39,213.32,16.4071]
[1731536785494,34.686,213.4,213.32,16.4071]
[1731536785495,30.0,213.4,213.32,16.4071]
[1731536786191,30.0,213.4,213.32,39.846]
[1731536786696,34.686,213.4,213.32,16.4071]